bitfinex-derivatives/quotes_ETHF0:USTF0_20250503
["timestamp","ask_amount","ask_price","bid_price","bid_amount"]
[1746234910076,4.74388859,1835.2,1835.1,43.8195]
[1746234910481,3.61277859,1835.2,1835.1,38.8195]
[1746234910777,3.61277859,1835.2,1835.1,43.8195]
[1746234911682,3.61277859,1835.2,1835.1,38.8195]
[1746234911875,4.0515669,1835.2,1835.1,38.8195]
[1746234913182,0.43878831,1835.2,1835.1,38.8195]
[1746234913379,2.77283,1835.4,1835.3,1.08924]
[1746234913580,3.21154793,1835.4,1835.3,1.08924]
[1746234913777,3.21154793,1835.4,1835.3,2.70964]
[1746234914083,3.21154838,1835.4,1835.3,2.70964]
[1746234916487,1.08929,1835.3,1835.2,1.08925]
[1746234916782,3.20370838,1835.3,1835.2,11.97865]
[1746234916984,3.20361199,1835.3,1835.2,1.08925]
[1746234917283,3.20361199,1835.3,1835.2,2.83655]
[1746234918583,1.0893,1835.2,1835.1,7.80511]
[1746234918774,0.43862199,1835.2,1835.1,27.72111]
[1746234920083,0.43862199,1835.2,1835.1,31.20411]
[1746234920279,14.69139922,1835.4,1835.3,1.08924]
[1746234920479,15.13002076,1835.4,1835.3,26.07584]
[1746234920784,15.13002419,1835.4,1835.3,26.07584]
[1746234920985,14.69139922,1835.4,1835.3,27.73744]
[1746234921587,5.43768344,1835.4,1835.3,27.73744]
[1746234922189,5.87607847,1835.4,1835.3,27.73744]
[1746234922482,5.87607847,1835.4,1835.3,24.52964]
[1746234922679,6.29947179,1835.4,1835.3,24.52964]
[1746234923275,6.29947179,1835.4,1835.3,27.73744]
[1746234923986,6.29929509,1835.4,1835.3,27.73744]
[1746234924175,6.29929509,1835.4,1835.3,24.52964]
[1746234925277,8.01189509,1835.4,1835.3,24.52964]
[1746234925478,2.57421165,1835.4,1835.3,24.52964]
[1746234925673,2.57421165,1835.4,1835.3,13.64024]
[1746234926787,2.57421165,1835.4,1835.3,24.52964]
[1746234926981,2.57421165,1835.4,1835.2,2.73446]
[1746234927186,1.0893,1835.2,1835.1,3.2078]
[1746234927391,1.52754833,1835.2,1835.0,1.08937]
[1746234927688,0.86161165,1835.1,1835.0,1.08937]
[1746234927876,0.86161165,1835.1,1835.0,2.67127]
[1746234928078,0.86148416,1835.1,1835.0,24.45007]
[1746234928278,0.86148136,1835.1,1835.0,24.45007]
[1746234929081,0.86147474,1835.1,1835.0,2.67127]
[1746234929280,0.86147825,1835.1,1835.0,1.08937]
[1746234929480,2.46987825,1835.1,1835.0,1.08937]
[1746234929677,2.46977669,1835.1,1835.0,1.08937]
[1746234930487,2.46977669,1835.1,1834.7,6.7879]
[1746234930685,2.0383305,1835.0,1834.9,1.08948]
[1746234930885,0.86142351,1835.0,1834.9,11.97888]
[1746234931094,0.86142351,1835.0,1834.9,25.30398]
[1746234931290,0.42339332,1835.0,1834.9,30.30398]
[1746234931586,0.86146983,1835.0,1834.9,30.30398]
[1746234931893,0.42339332,1835.0,1834.9,25.30398]
[1746234932492,3.32e-06,1835.0,1834.9,30.30398]
[1746234932690,3.32e-06,1835.0,1834.9,25.30398]
[1746234933090,5.43768344,1835.2,1835.1,1.08936]
[1746234933290,5.87578623,1835.2,1835.1,22.86816]
[1746234933489,0.43810279,1835.2,1835.1,22.86816]
[1746234933794,2.13620279,1835.2,1835.1,24.56996]
[1746234934288,2.13620279,1835.2,1835.1,13.68056]
[1746234935194,2.13617337,1835.2,1835.1,13.68056]
[1746234935793,2.13615486,1835.2,1835.1,24.56996]
[1746234936994,2.13615486,1835.2,1835.1,22.86816]
[1746234937387,2.83085282,1835.2,1835.1,22.86816]
[1746234937590,7.83085282,1835.2,1834.8,15.33054]
[1746234937798,2.90605486,1835.1,1835.0,1.08942]
[1746234938000,0.43805486,1835.1,1835.0,22.86822]
[1746234938195,0.43805486,1835.1,1835.0,24.57942]
[1746234939198,0.43805486,1835.1,1835.0,27.78722]
[1746234939599,0.69469796,1835.2,1835.1,1.08936]
[1746234939804,1.13270018,1835.2,1835.1,24.50756]
[1746234941099,2.85570018,1835.2,1835.1,24.50756]
[1746234941299,2.85585966,1835.2,1835.1,24.50756]
[1746234941700,2.1611617,1835.2,1835.1,24.50756]
[1746234942106,3.2504617,1835.2,1835.1,1.08936]
[1746234943308,1.0894,1835.1,1835.0,1.08937]
[1746234943510,3.1143617,1835.1,1835.0,1.08937]
[1746234945609,9.24677738,1835.1,1835.0,1.08937]
[1746234946005,8.80861568,1835.1,1835.0,1.08937]
[1746234946206,8.80857568,1835.1,1835.0,1.08937]
[1746234946413,8.15722823,1835.1,1835.0,1.08937]
[1746234946714,7.71921568,1835.1,1835.0,1.08937]
[1746234947011,8.80857568,1835.1,1835.0,1.08937]
[1746234947311,8.15723595,1835.1,1835.0,1.08937]
[1746234947712,8.80857568,1835.1,1835.0,1.08937]
[1746234947913,9.24657735,1835.1,1835.0,1.08937]
[1746234948114,8.80857568,1835.1,1835.0,1.08937]
[1746234948415,9.24655175,1835.1,1835.0,1.08937]
[1746234949115,3.80886831,1835.1,1835.0,1.08937]
[1746234951620,3.8089602,1835.1,1835.0,1.08937]
[1746234951809,5.9274002,1835.1,1834.8,1.08951]
[1746234952010,1.08954,1834.9,1834.8,1.08951]
[1746234952209,1.52760796,1834.9,1834.8,1.08951]
[1746234952417,3.23740796,1834.9,1834.8,1.08951]
[1746234953521,3.2374356,1834.9,1834.8,1.08951]
[1746234953820,3.2374356,1834.9,1834.8,2.72421]
[1746234954221,0.4380956,1834.9,1834.8,24.50301]
[1746234955216,1.6318,1835.0,1834.9,1.08948]
[1746234955523,0.43827383,1835.0,1834.9,24.51948]
[1746234955915,12.13940568,1835.1,1835.0,1.08942]
[1746234956110,12.57770254,1835.1,1835.0,28.23742]
[1746234956316,12.57769806,1835.1,1835.0,6.45862]
[1746234956819,12.57778369,1835.1,1835.0,6.45862]
[1746234957624,6.44536801,1835.1,1835.0,6.45862]
[1746234959827,6.44536801,1835.1,1835.0,17.34802]
[1746234960421,3.64617801,1835.1,1835.0,28.23742]
[1746234961628,9.08392779,1835.1,1835.0,28.23742]
[1746234963128,9.08394973,1835.1,1835.0,28.23742]
[1746234963625,5.87614973,1835.1,1835.0,31.44522]
[1746234963829,5.87614973,1835.1,1835.0,36.44522]
[1746234964223,5.87611749,1835.1,1835.0,36.44522]
[1746234964530,5.87611749,1835.1,1835.0,31.44522]
[1746234965536,5.87611749,1835.1,1835.0,28.23742]
[1746234965722,1.52779405,1835.1,1835.0,28.23742]
[1746234967532,0.43843405,1835.1,1835.0,28.23742]
[1746234967733,1.52779405,1835.1,1835.0,28.23742]
[1746234967933,1.52779405,1835.1,1835.0,29.87672]
[1746234968734,0.43853886,1835.1,1835.0,29.87672]
[1746234971535,1.52789886,1835.1,1835.0,29.87672]
[1746234971835,0.43853886,1835.1,1835.0,29.87672]
[1746234972136,8.15293344,1835.2,1835.1,1.08936]
[1746234972336,8.59149288,1835.2,1835.1,22.86816]
[1746234972540,8.59149288,1835.2,1835.1,1.08936]
[1746234972837,1.08936,1835.1,1835.0,4.80737]
[1746234973037,3.10771944,1835.1,1835.0,3.718]
[1746234973837,9.24004639,1835.1,1835.0,3.718]
[1746234974339,14.24004639,1835.1,1835.0,3.718]
[1746234975531,13.80156334,1835.1,1835.0,3.718]
[1746234975734,14.23996514,1835.1,1835.0,3.718]
[1746234976339,9.23996514,1835.1,1835.0,3.718]
[1746234976534,14.23996514,1835.1,1835.0,3.718]
[1746234978839,16.26151395,1835.1,1835.0,3.718]
[1746234979140,16.2612912,1835.1,1835.0,3.718]
[1746234979337,11.2612912,1835.1,1835.0,3.718]
[1746234980940,11.26119097,1835.1,1835.0,3.718]
[1746234982740,11.26112926,1835.1,1835.0,3.718]
[1746234982942,12.85415661,1835.1,1835.0,3.718]
[1746234983839,12.85415661,1835.1,1835.0,15.69682]
[1746234984146,12.85420856,1835.1,1835.0,18.14612]
[1746234984437,12.85422546,1835.1,1835.0,18.14612]
[1746234984638,11.27442786,1835.1,1835.0,29.03552]
[1746234984842,10.18508255,1835.1,1835.0,29.03552]
[1746234985545,10.18505013,1835.1,1835.0,29.03552]
[1746234985739,9.7469795,1835.1,1835.0,29.03552]
[1746234985944,10.18503914,1835.1,1835.0,29.03552]
[1746234987144,1.13277954,1835.1,1835.0,29.03552]
[1746234987646,1.13274503,1835.1,1835.0,29.03552]
[1746234989846,1.13273871,1835.1,1835.0,29.03552]
[1746234990850,1.13273871,1835.1,1835.0,34.03552]
[1746234991349,1.13273871,1835.1,1835.0,29.03552]
[1746234991548,1.13263867,1835.1,1835.0,29.03552]
[1746234993248,1.13263171,1835.1,1835.0,29.03552]
[1746234994648,1.1326981,1835.1,1835.0,29.03552]
[1746234994854,0.6947199,1835.1,1835.0,32.24332]
[1746234996254,5.43217211,1835.2,1835.1,1.08936]
[1746234996450,0.43792409,1835.2,1835.1,25.28936]
[1746234996952,5.43217211,1835.3,1835.2,1.0893]
[1746234997152,5.87010351,1835.3,1835.2,31.6987]
[1746234998550,5.86992658,1835.3,1835.2,31.6987]
[1746235000251,5.43217211,1835.3,1835.2,31.6987]
[1746235000453,5.43217211,1835.5,1835.4,1.08919]
[1746235000641,5.43217211,1835.5,1835.4,22.86799]
[1746235000642,5.86973358,1835.5,1835.4,22.86799]
[1746235001142,5.86973358,1835.5,1835.4,25.43309]
[1746235001349,5.86973358,1835.5,1835.4,29.15109]
[1746235003754,6.56431259,1835.5,1835.4,29.15109]
[1746235004057,6.5642147,1835.5,1835.4,29.15109]
[1746235004955,6.12675112,1835.5,1835.4,29.15109]
[1746235005658,6.12675112,1835.5,1835.4,32.35889]
[1746235006565,5.03748112,1835.5,1835.4,32.35889]
[1746235006857,3.69186112,1835.5,1835.4,32.35889]
[1746235007059,3.69186112,1835.5,1835.4,32.68577841]
[1746235007258,2.40406112,1835.5,1835.4,37.35889]
[1746235007459,2.40406112,1835.5,1835.4,37.67607806]
[1746235007760,1.12e-06,1835.5,1835.4,43.59207806]
[1746235008062,0.02,1835.8,1835.7,1.08901]
[1746235008359,0.02,1835.8,1835.7,26.37981]
[1746235009068,0.02,1835.8,1835.7,28.10221]
[1746235009363,7.24289615,1835.9,1835.8,1.08895]
[1746235009556,7.24289615,1835.9,1835.8,24.59015]
[1746235010062,7.24289615,1835.9,1835.8,28.30815]
[1746235010360,13.33178615,1835.9,1835.8,3.718]
[1746235010663,1.08911,1835.6,1835.5,1.0891]
[1746235010864,1.52607429,1835.6,1835.5,1.0891]
[1746235011161,6.52607429,1835.6,1835.5,4.8071]
[1746235011361,2.15346429,1835.6,1835.5,4.8071]
[1746235011566,3.24253429,1835.6,1835.5,4.8071]
[1746235011964,2.15346429,1835.6,1835.5,4.8071]
[1746235012464,3.24253429,1835.6,1835.5,4.8071]
[1746235012759,2.80557,1835.6,1835.5,4.8071]
[1746235012965,3.24277578,1835.6,1835.5,4.8071]
[1746235013267,3.24277578,1835.6,1835.5,3.718]
[1746235014065,3.24277578,1835.6,1835.5,4.80713]
[1746235014568,3.24300838,1835.6,1835.5,3.718]
[1746235016869,8.24300838,1835.6,1835.5,3.718]
[1746235017378,8.24313444,1835.6,1835.5,3.718]
[1746235017573,7.80557,1835.6,1835.5,3.718]
[1746235017879,8.24312176,1835.6,1835.5,3.718]
[1746235018081,7.80557,1835.6,1835.5,3.718]
[1746235018270,8.2431636,1835.6,1835.5,3.718]
[1746235018581,8.24317216,1835.6,1835.5,3.718]
[1746235018881,3.24315916,1835.6,1835.5,3.718]
[1746235019372,3.24319752,1835.6,1835.5,3.718]
[1746235019571,2.80557,1835.6,1835.5,3.718]
[1746235019774,3.24319734,1835.6,1835.5,3.718]
[1746235019973,3.24320924,1835.6,1835.5,3.718]
[1746235021173,2.80557,1835.6,1835.5,3.718]
[1746235021375,3.24320704,1835.6,1835.5,3.718]
[1746235022881,3.24324875,1835.6,1835.5,3.718]
[1746235023973,3.24324875,1835.6,1835.5,26.58593]
[1746235024268,3.24324875,1835.6,1835.5,25.4968]
[1746235024585,3.24333735,1835.6,1835.5,25.4968]
[1746235024984,3.24333735,1835.6,1835.5,3.718]
[1746235028182,3.24329742,1835.6,1835.5,3.718]
[1746235029883,2.80557,1835.6,1835.5,3.718]
[1746235030086,3.24322682,1835.6,1835.5,3.718]
[1746235030584,18.49347841,1835.6,1835.5,3.718]
[1746235031678,18.49345469,1835.6,1835.5,3.718]
[1746235034177,11.25055854,1835.6,1835.5,4.80713]
[1746235034671,11.25055854,1835.6,1835.5,15.69653]
[1746235034882,11.25055854,1835.6,1835.5,17.34443]
[1746235035185,8.44498854,1835.6,1835.5,28.23383]
[1746235035384,8.44500312,1835.6,1835.5,33.23383]
[1746235035681,8.44500312,1835.6,1835.5,36.75783]
[1746235035984,8.00735544,1835.6,1835.5,36.75783]
[1746235038484,3.61891131,1835.8,1835.7,1.08901]
[1746235038676,4.05671028,1835.8,1835.7,11.97841]
[1746235038876,4.05671411,1835.8,1835.7,22.86781]
[1746235039090,4.05671411,1835.8,1835.7,27.44681]
[1746235039679,7.93247148,1836.0,1835.9,1.08889]
[1746235039874,7.93247148,1836.0,1835.9,26.39169]
[1746235040078,7.93247148,1836.0,1835.9,35.10969]
[1746235043089,7.93247148,1836.0,1835.9,30.10969]
[1746235044293,6.66946,1836.2,1836.1,1.08877]
[1746235044788,5.08736,1836.2,1836.1,1.08877]
[1746235044989,5.08736,1836.2,1836.1,1.90697]
[1746235045589,5.08736,1836.2,1836.1,3.48937]
[1746235046090,5.08731,1836.2,1836.1,3.48937]
[1746235047396,1.87951,1836.2,1836.1,3.48937]
[1746235047590,5.08731,1836.2,1836.1,3.48937]
[1746235050889,5.94831,1836.2,1836.1,3.48937]
[1746235054204,1.08877,1836.1,1836.0,3.718]
[1746235054493,3.19356086,1836.1,1836.0,25.4968]
[1746235054695,2.75677,1836.1,1836.0,25.4968]
[1746235054894,3.19356988,1836.1,1836.0,25.4968]
[1746235056502,1.52556988,1836.1,1836.0,26.58563]
[1746235056701,1.08877,1836.1,1836.0,28.16543]
[1746235056900,5.94836,1836.2,1836.1,1.08877]
[1746235057098,4.29656,1836.2,1836.1,26.10577]
[1746235058301,1.08876,1836.2,1836.1,26.10577]
[1746235058700,2.83246,1836.2,1836.1,26.10577]
[1746235063106,6.04026,1836.2,1836.1,26.10577]
[1746235063603,3.2078,1836.2,1836.1,26.10577]
[1746235063797,4.29644,1836.4,1836.3,1.08865]
[1746235064113,3.2078,1836.4,1836.3,26.58545]
[1746235064405,10.44562263,1836.4,1836.3,26.58545]
[1746235064602,11.53421263,1836.4,1836.3,25.4968]
[1746235065105,11.53421263,1836.4,1836.3,27.1872]
[1746235065307,13.17591263,1836.4,1836.3,27.1872]
[1746235065506,13.17591263,1836.4,1836.3,3.718]
[1746235067308,13.17591263,1836.4,1836.3,3.30953824]
[1746235069604,21.09609718,1836.4,1836.3,3.30953824]
[1746235069801,1.08877,1836.1,1836.0,2.77923]
[1746235070201,1.08877,1836.1,1836.0,28.27603]
[1746235073109,1.08877,1836.1,1836.0,27.1872]
[1746235073309,3.2077198,1836.1,1836.0,27.1872]
[1746235073511,3.20772003,1836.1,1836.0,27.1872]
[1746235074512,3.20766177,1836.1,1836.0,27.1872]
[1746235076411,3.2076226,1836.1,1836.0,27.1872]
[1746235078011,3.20758575,1836.1,1836.0,27.1872]
[1746235079409,9.31903791,1836.1,1836.0,27.1872]
[1746235079909,9.31900333,1836.1,1836.0,28.27603]
[1746235080213,7.20022216,1836.1,1836.0,28.27603]
[1746235082814,7.20022216,1836.1,1836.0,27.1872]
[1746235083211,9.45970318,1836.1,1836.0,27.1872]
[1746235083814,9.45970318,1836.1,1836.0,16.2978]
[1746235084207,11.12040318,1836.1,1836.0,16.2978]
[1746235084409,11.12040318,1836.1,1836.0,27.1872]
[1746235084608,11.12038942,1836.1,1836.0,27.1872]
[1746235084812,11.12038942,1836.1,1836.0,5.4084]
[1746235086015,10.68173054,1836.1,1836.0,5.4084]
[1746235086316,10.68173054,1836.1,1836.0,3.718]
[1746235086616,11.12041267,1836.1,1836.0,3.718]
[1746235086817,11.06798323,1836.1,1836.0,3.718]
[1746235087317,11.06798323,1836.1,1836.0,3.30944895]
[1746235087519,1.08895,1835.8,1835.7,1.6628]
[1746235087717,4.73505813,1835.8,1835.7,1.6628]
[1746235087913,4.73505606,1835.8,1835.7,1.6628]
[1746235088113,4.73505343,1835.8,1835.7,5.3808]
[1746235088315,4.73502571,1835.8,1835.7,5.3808]
[1746235089820,4.73471323,1835.8,1835.7,5.3808]
[1746235092223,11.92010642,1835.8,1835.7,5.3808]
[1746235092520,21.66680393,1835.8,1835.7,5.3808]
[1746235093521,21.66635782,1835.8,1835.7,5.3808]
[1746235094719,21.66635782,1835.8,1835.7,3.718]
[1746235095221,21.66648028,1835.8,1835.7,3.718]
[1746235096023,19.85007682,1835.8,1835.7,3.718]
[1746235096224,19.85011756,1835.8,1835.7,3.718]
[1746235096416,21.49841756,1835.8,1835.7,3.718]
[1746235096616,21.06073724,1835.8,1835.7,3.718]
[1746235096812,21.49842019,1835.8,1835.7,3.718]
[1746235097018,21.4984074,1835.8,1835.7,3.718]
[1746235098924,21.49828543,1835.8,1835.7,3.718]
[1746235100513,21.49828953,1835.8,1835.7,3.718]
[1746235100718,21.49828953,1835.8,1835.7,14.6074]
[1746235102629,21.49828953,1835.8,1835.7,3.718]
[1746235102926,21.49828953,1835.8,1835.7,14.6074]
[1746235104026,21.06073724,1835.8,1835.7,14.6074]
[1746235104222,21.49832515,1835.8,1835.7,14.6074]
[1746235104427,21.49833108,1835.8,1835.7,14.6074]
[1746235104626,21.49833129,1835.8,1835.7,14.6074]
[1746235104820,21.49833066,1835.8,1835.7,14.6074]
[1746235105019,21.49833078,1835.8,1835.7,14.6074]
[1746235105229,21.4983393,1835.8,1835.7,14.6074]
[1746235105429,19.8500393,1835.8,1835.7,14.6074]
[1746235105621,19.8500445,1835.8,1835.7,25.4968]
[1746235105926,19.85004611,1835.8,1835.7,27.074]
[1746235106127,19.85007773,1835.8,1835.7,27.074]
[1746235106321,19.85010633,1835.8,1835.7,27.074]
[1746235106921,12.66474525,1835.8,1835.7,27.074]
[1746235107229,12.66475127,1835.8,1835.7,3.718]
[1746235107428,14.41013388,1835.8,1835.7,3.718]
[1746235107628,14.4101333,1835.8,1835.7,3.718]
[1746235107929,14.4101331,1835.8,1835.7,3.718]
[1746235108128,14.41012576,1835.8,1835.7,3.718]
[1746235108928,14.41021471,1835.8,1835.7,3.718]
[1746235109230,14.41025448,1835.8,1835.7,3.718]
[1746235109526,14.4102532,1835.8,1835.7,3.718]
[1746235109828,12.6648532,1835.8,1835.7,25.4968]
[1746235110027,12.6648532,1835.8,1835.7,26.58581]
[1746235110729,12.6650229,1835.8,1835.7,26.58581]
[1746235111831,12.6650229,1835.8,1835.7,22.71689123]
[1746235112129,12.6650229,1835.8,1835.7,26.43489123]
[1746235113229,12.66532346,1835.8,1835.7,26.43489123]
[1746235113429,12.66545071,1835.8,1835.7,26.43489123]
[1746235113630,12.66545034,1835.8,1835.7,26.43489123]
[1746235113832,12.66546031,1835.8,1835.7,26.43489123]
[1746235114033,5.42960417,1835.8,1835.7,26.43489123]
[1746235114332,5.42957923,1835.8,1835.7,26.43489123]
[1746235115828,4.34062923,1835.8,1835.7,26.43489123]
[1746235116034,1.13282923,1835.8,1835.7,26.43489123]
[1746235116333,1.13282923,1835.8,1835.7,31.22369123]
[1746235116334,0.69443791,1835.8,1835.7,31.22369123]
[1746235116832,0.69443791,1835.8,1835.7,34.70869123]
[1746235117235,1.1329851,1835.8,1835.7,34.70869123]
[1746235118527,0.43854719,1835.8,1835.7,34.70869123]
[1746235118928,1.52749719,1835.8,1835.7,31.50089123]
[1746235119635,1.52729308,1835.8,1835.7,31.50089123]
[1746235121336,1.52731012,1835.8,1835.7,31.50089123]
[1746235121532,1.52729519,1835.8,1835.7,31.50089123]
[1746235122637,6.95381984,1835.8,1835.7,31.50089123]
[1746235123237,6.95380335,1835.8,1835.7,31.50089123]
[1746235124642,5.86485335,1835.8,1835.7,31.50089123]
[1746235124829,6.95380335,1835.8,1835.7,31.50089123]
[1746235125028,6.95381596,1835.8,1835.7,31.50089123]
[1746235125932,2.22178901,1835.8,1835.7,31.50089123]
[1746235126638,2.22183207,1835.8,1835.7,31.50089123]
[1746235126830,2.22183079,1835.8,1835.7,31.50089123]
[1746235127535,3.95823079,1835.8,1835.7,31.50089123]
[1746235128542,3.95826663,1835.8,1835.7,31.50089123]
[1746235128838,3.95826554,1835.8,1835.7,31.50089123]
[1746235129441,3.95826554,1835.8,1835.7,28.01589123]
[1746235129940,3.95830872,1835.8,1835.7,28.01589123]
[1746235130242,2.22190872,1835.8,1835.7,28.01589123]
[1746235130442,2.22190073,1835.8,1835.7,28.01589123]
[1746235134042,2.22216982,1835.8,1835.7,28.01589123]
[1746235134443,16.55330081,1835.8,1835.7,28.01589123]
[1746235134942,16.55330081,1835.8,1835.7,26.92688123]
[1746235135242,21.35730081,1835.8,1835.7,3.718]
[1746235137642,21.35724875,1835.8,1835.7,3.718]
[1746235138144,14.12139261,1835.8,1835.7,3.718]
[1746235139344,14.1213898,1835.8,1835.7,3.718]
[1746235140946,14.1213762,1835.8,1835.7,3.718]
[1746235142045,23.1736358,1835.8,1835.7,3.718]
[1746235142443,23.1735818,1835.8,1835.7,3.718]
[1746235142745,23.17357162,1835.8,1835.7,3.718]
[1746235143442,23.17339629,1835.8,1835.7,3.718]
[1746235144447,23.17338075,1835.8,1835.7,3.718]
[1746235147951,23.17338075,1835.8,1835.7,5.4411]
[1746235148251,23.17374376,1835.8,1835.7,5.4411]
[1746235149851,23.17385721,1835.8,1835.7,5.4411]
[1746235151747,23.17388883,1835.8,1835.7,5.4411]
[1746235152747,23.17388883,1835.8,1835.7,16.17958123]
[1746235152952,14.12162923,1835.8,1835.7,16.17958123]
[1746235153853,14.12163436,1835.8,1835.7,16.17958123]
[1746235156853,7.02635951,1835.8,1835.7,16.17958123]
[1746235157051,7.02625844,1835.8,1835.7,16.17958123]
[1746235158855,7.02629919,1835.8,1835.7,16.17958123]
[1746235159263,1.08907,1835.6,1835.5,1.6142]
[1746235159557,1.08924,1835.3,1835.2,1.92346]
[1746235159749,1.52809149,1835.3,1835.2,2.75616]
[1746235159950,1.52809149,1835.3,1835.2,24.38404123]
[1746235160153,1.52809149,1835.3,1835.2,28.10204123]
[1746235160346,1.52809149,1835.3,1835.2,17.21264123]
[1746235160554,1.52809149,1835.3,1835.2,29.80334123]
[1746235162458,1.52766396,1835.3,1835.2,29.80334123]
[1746235164160,1.52754632,1835.3,1835.2,29.80334123]
[1746235166359,7.65422465,1835.3,1835.2,29.80334123]
[1746235169565,7.65414545,1835.3,1835.2,29.80334123]
[1746235170467,11.27535211,1835.3,1835.2,29.80334123]
[1746235171377,11.27538159,1835.3,1835.2,29.80334123]
[1746235171664,10.18614159,1835.3,1835.2,29.80334123]
[1746235173065,10.1861912,1835.3,1835.2,29.80334123]
[1746235174067,4.75401057,1835.3,1835.2,29.80334123]
[1746235176667,4.75397918,1835.3,1835.2,29.80334123]
[1746235178264,4.75399115,1835.3,1835.2,29.80334123]
[1746235178467,4.75402606,1835.3,1835.2,29.80334123]
[1746235181071,4.75402606,1835.3,1835.2,19.06486]
[1746235181264,4.75402606,1835.3,1835.2,29.80334123]
[1746235185570,4.75432792,1835.3,1835.2,29.80334123]
[1746235185869,6.56530189,1835.3,1835.2,29.80334123]
[1746235187369,6.56548347,1835.3,1835.2,29.80334123]
[1746235188870,6.56542912,1835.3,1835.2,29.80334123]
[1746235189068,0.43875079,1835.3,1835.2,35.71934123]
[1746235189271,5.43218063,1835.4,1835.3,1.08924]
[1746235189470,5.87092604,1835.4,1835.3,27.60302123]
[1746235190065,5.87092604,1835.4,1835.3,31.32102123]
[1746235192576,0.43874541,1835.4,1835.3,31.32102123]
[1746235194875,0.43874541,1835.4,1835.3,37.23702123]
[1746235199883,3.62075318,1835.5,1835.4,1.08919]
[1746235200082,4.05877605,1835.5,1835.4,32.52847123]
[1746235201190,0.43802004,1835.5,1835.4,32.52847123]
[1746235202885,5.24905318,1835.6,1835.5,1.08913]
[1746235203089,5.68735126,1835.6,1835.5,24.31861123]
[1746235204088,5.68735126,1835.6,1835.5,28.03661123]
[1746235204684,5.68721341,1835.6,1835.5,28.03661123]
[1746235206784,10.68721341,1835.6,1835.5,4.80713]
[1746235206991,5.68721341,1835.6,1835.5,4.80713]
[1746235208490,5.68742138,1835.6,1835.5,4.80713]
[1746235209387,6.77649138,1835.6,1835.5,4.80713]
[1746235209584,6.38194408,1835.6,1835.5,4.80713]
[1746235210289,6.38204403,1835.6,1835.5,4.80713]
[1746235211089,7.47111403,1835.6,1835.5,4.80713]
[1746235211290,6.38204403,1835.6,1835.5,4.80713]
[1746235213490,8.19347148,1835.6,1835.5,4.80713]
[1746235213689,8.19370752,1835.6,1835.5,4.80713]
[1746235215493,6.56556433,1835.6,1835.5,28.12911123]
[1746235215685,6.56556433,1835.6,1835.5,32.46121123]
[1746235217190,6.12670333,1835.6,1835.5,32.46121123]
[1746235217397,0.43893393,1835.6,1835.5,35.66901123]
[1746235218997,4.31734707,1835.7,1835.6,1.08907]
[1746235219294,4.75624303,1835.7,1835.6,25.25575123]
[1746235219496,4.75624303,1835.7,1835.6,14.51727]
[1746235219696,4.75624303,1835.7,1835.6,25.25575123]
[1746235220795,4.75609031,1835.7,1835.6,25.25575123]
[1746235221300,0.43874324,1835.7,1835.6,25.25575123]
[1746235222597,3.62282437,1835.8,1835.7,1.08901]
[1746235222799,4.06149374,1835.8,1835.7,25.14519123]
[1746235223097,4.06149374,1835.8,1835.7,28.86319123]
[1746235223398,3.62282437,1835.8,1835.7,4.80701]
[1746235223591,5.63875373,1835.8,1835.7,4.80701]
[1746235223995,5.63875373,1835.8,1835.7,15.69641]
[1746235224296,5.20012437,1835.8,1835.7,15.69641]
[1746235224687,2.01588452,1835.8,1835.7,15.69641]
[1746235224994,1.5773,1835.8,1835.7,26.43489123]
[1746235225194,1.5773,1835.8,1835.7,28.12279123]
[1746235225702,5.90203609,1835.9,1835.8,1.08895]
[1746235225886,5.90203609,1835.9,1835.8,13.67305]
[1746235226091,7.52673609,1835.9,1835.8,6.50165]
[1746235228401,6.83232437,1835.9,1835.8,6.50165]
[1746235228696,7.27078925,1835.9,1835.8,6.50165]
[1746235229802,6.83232437,1835.9,1835.8,6.50165]
[1746235230605,7.27077829,1835.9,1835.8,6.50165]
[1746235231501,7.27077753,1835.9,1835.8,6.50165]
[1746235232296,6.83232437,1835.9,1835.8,6.50165]
[1746235233105,4.41792437,1835.9,1835.8,28.12953123]
[1746235234996,5.11230546,1835.9,1835.8,28.12953123]
[1746235235999,4.31720546,1835.9,1835.8,28.12953123]
[1746235236801,4.31720546,1835.9,1835.8,31.33733123]
[1746235238105,4.31720546,1835.9,1835.8,34.81633123]
[1746235239906,3.62282437,1835.9,1835.8,34.81633123]
[1746235240705,3.62282437,1835.9,1835.8,31.60853123]
[1746235240906,3.62282437,1835.9,1835.8,34.81633123]
[1746235242399,3.62282437,1835.9,1835.8,40.73233123]
[1746235242599,5.43218063,1836.0,1835.9,1.08889]
[1746235242805,5.43218063,1836.0,1835.9,25.15047123]
[1746235243204,5.43218063,1836.0,1835.9,28.86847123]
[1746235243403,5.43218063,1836.1,1836.0,1.08883]
[1746235243602,5.43218063,1836.1,1836.0,6.77253]
[1746235243903,5.43218063,1836.1,1836.0,28.40041123]
[1746235244103,5.43218063,1836.1,1836.0,32.11841123]
[1746235247007,3.62862,1836.2,1836.1,1.08877]
[1746235247209,2.5399,1836.2,1836.1,26.19565123]
[1746235249211,2.5399,1836.2,1836.1,27.91555123]
[1746235250314,2.5399,1836.2,1836.1,28.70725123]
[1746235254915,5.43218063,1836.3,1836.2,1.08871]
[1746235255121,3.01875736,1836.3,1836.2,28.12339123]
[1746235255719,3.01875736,1836.4,1836.3,1.08865]
[1746235255921,3.01875736,1836.4,1836.3,24.39665]
[1746235256118,3.01875736,1836.4,1836.3,38.85313123]
[1746235258620,3.01875736,1836.4,1836.3,35.64533123]
[1746235258821,7.24290751,1836.5,1836.3,35.64533123]
[1746235258822,7.24290751,1836.5,1836.4,1.08859]
[1746235259023,2.71137,1836.6,1836.4,26.73688123]
[1746235259226,2.71137,1836.6,1836.5,11.97793]
[1746235259412,2.71137,1836.6,1836.5,1.08853]
[1746235260120,1.6229,1836.6,1836.5,15.69593]
[1746235260316,1.6601,1836.7,1836.6,1.08847]
[1746235260619,3.2989,1836.7,1836.6,1.08847]
[1746235261323,3.2989,1836.7,1836.6,2.70277]
[1746235265811,3.2989,1836.7,1836.6,24.33065123]
[1746235266515,7.24290751,1836.9,1836.8,1.08836]
[1746235266819,3.3611,1836.9,1836.8,1.08836]